[Event "Late-Titled-Tuesday-Blitz-September-12-2023"]
[Site "Chess.com"]
[Date "2023.09.12"]
[Round "5"]
[White "infinitegiantkiller"]
[Black "NotFischer"]
[Result "0-1"]
[WhiteElo "2445"]
[BlackElo "2300"]
[TimeControl "180+1"]
[EndTime "14:53:06 PDT"]
[Termination "NotFischer won by checkmate"]

1. Nf3 {[%clk 0:03:00.9]} 1... Nf6 {[%clk 0:02:59.6]} 2. g3 {[%clk 0:03:01.8]}
2... g6 {[%clk 0:02:59.6]} 3. Bg2 {[%clk 0:03:02.7]} 3... Bg7 {[%clk 0:02:59.9]}
4. O-O {[%clk 0:03:03.6]} 4... d6 {[%clk 0:03:00.2]} 5. b3 {[%clk 0:03:03.8]}
5... e5 {[%clk 0:03:00.2]} 6. Bb2 {[%clk 0:03:04.2]} 6... O-O {[%clk 0:03:00.4]}
7. d3 {[%clk 0:03:03.8]} 7... c6 {[%clk 0:03:00.3]} 8. Nbd2 {[%clk 0:03:04.5]}
8... h6 {[%clk 0:02:57.7]} 9. e4 {[%clk 0:03:03.8]} 9... Be6 {[%clk 0:02:57.2]}
10. h3 {[%clk 0:03:03.8]} 10... Qd7 {[%clk 0:02:56.2]} 11. Kh2 {[%clk 0:03:04]}
11... Nh5 {[%clk 0:02:51.3]} 12. d4 {[%clk 0:03:00.4]} 12... Qc7 {[%clk
0:02:42.7]} 13. Qe2 {[%clk 0:02:57.4]} 13... Nd7 {[%clk 0:02:40.5]} 14. Rad1
{[%clk 0:02:49.7]} 14... f5 {[%clk 0:02:38.7]} 15. dxe5 {[%clk 0:02:48.3]} 15...
dxe5 {[%clk 0:02:33.9]} 16. Nc4 {[%clk 0:02:45.9]} 16... fxe4 {[%clk 0:02:25.7]}
17. Qxe4 {[%clk 0:02:42.7]} 17... Bd5 {[%clk 0:02:14.8]} 18. Rxd5 {[%clk
0:02:23.6]} 18... cxd5 {[%clk 0:02:15.7]} 19. Qxd5+ {[%clk 0:02:24.2]} 19... Kh7
{[%clk 0:02:15.5]} 20. Nfxe5 {[%clk 0:02:21]} 20... Nxe5 {[%clk 0:02:11]} 21.
Nxe5 {[%clk 0:02:19.8]} 21... Qxc2 {[%clk 0:02:03.9]} 22. Nxg6 {[%clk
0:02:05.5]} 22... Rxf2 {[%clk 0:01:47.3]} 23. Rxf2 {[%clk 0:02:02.4]} 23... Qxf2
{[%clk 0:01:46.7]} 24. Qxh5 {[%clk 0:01:49.8]} 24... Qxb2 {[%clk 0:01:45.7]} 25.
Nf4 {[%clk 0:01:46]} 25... Qf6 {[%clk 0:01:30.1]} 26. Be4+ {[%clk 0:01:45]}
26... Kh8 {[%clk 0:01:15.2]} 27. Ng6+ {[%clk 0:01:44]} 27... Kg8 {[%clk
0:01:14.9]} 28. Qd5+ {[%clk 0:01:40.2]} 28... Qf7 {[%clk 0:01:06.4]} 29. Qd2
{[%clk 0:01:24.8]} 29... Qe8 {[%clk 0:00:37]} 30. Bd5+ {[%clk 0:01:04.7]} 30...
Kh7 {[%clk 0:00:37]} 31. Qc2 {[%clk 0:00:54.2]} 31... Bf6 {[%clk 0:00:17.6]} 32.
Nf8+ {[%clk 0:00:46.1]} 32... Kg7 {[%clk 0:00:17.6]} 33. Qg6+ {[%clk 0:00:46.5]}
33... Qxg6 {[%clk 0:00:17]} 34. Nxg6 {[%clk 0:00:46.8]} 34... Kxg6 {[%clk
0:00:17.6]} 35. Bxb7 {[%clk 0:00:46.7]} 35... Rd8 {[%clk 0:00:17.8]} 36. h4
{[%clk 0:00:39.9]} 36... Rd2+ {[%clk 0:00:18.7]} 37. Kh3 {[%clk 0:00:40.1]}
37... Be5 {[%clk 0:00:19.2]} 38. a4 {[%clk 0:00:38.7]} 38... Kf6 {[%clk
0:00:18.2]} 39. Kg4 {[%clk 0:00:37]} 39... Rd3 {[%clk 0:00:18.4]} 40. Kh5 {[%clk
0:00:37.5]} 40... Rxg3 {[%clk 0:00:17.2]} 41. Kxh6 {[%clk 0:00:37.8]} 41... Rxb3
{[%clk 0:00:17.1]} 42. Bc6 {[%clk 0:00:38.6]} 42... Rb4 {[%clk 0:00:16.9]} 43.
h5 {[%clk 0:00:39.1]} 43... Rh4 {[%clk 0:00:16.4]} 44. Be8 {[%clk 0:00:38.8]}
44... a5 {[%clk 0:00:12.6]} 45. Kh7 {[%clk 0:00:38.1]} 45... Kg5 {[%clk
0:00:12.4]} 46. Kg8 {[%clk 0:00:37.6]} 46... Rxh5 {[%clk 0:00:11.8]} 47. Bxh5
{[%clk 0:00:38.5]} 47... Kxh5 {[%clk 0:00:12.4]} 48. Kf7 {[%clk 0:00:39.4]}
48... Kg5 {[%clk 0:00:12.9]} 49. Ke6 {[%clk 0:00:40.3]} 49... Kf4 {[%clk
0:00:13.4]} 50. Kd5 {[%clk 0:00:41.1]} 50... Bc3 {[%clk 0:00:12.8]} 51. Kc4
{[%clk 0:00:40.2]} 51... Bb4 {[%clk 0:00:13.4]} 52. Kb5 {[%clk 0:00:40.2]} 52...
Ke4 {[%clk 0:00:14]} 53. Kc4 {[%clk 0:00:40.9]} 53... Ke3 {[%clk 0:00:14.4]} 54.
Kb3 {[%clk 0:00:41.6]} 54... Kd3 {[%clk 0:00:15]} 55. Kb2 {[%clk 0:00:42.2]}
55... Kc4 {[%clk 0:00:15.3]} 56. Ka2 {[%clk 0:00:43.1]} 56... Kc3 {[%clk
0:00:14.9]} 57. Kb1 {[%clk 0:00:43.1]} 57... Kb3 {[%clk 0:00:15.4]} 58. Ka1
{[%clk 0:00:43.7]} 58... Kxa4 {[%clk 0:00:16.3]} 59. Kb1 {[%clk 0:00:44.6]}
59... Kb3 {[%clk 0:00:16.6]} 60. Ka1 {[%clk 0:00:45.2]} 60... Bc3+ {[%clk
0:00:17]} 61. Kb1 {[%clk 0:00:46.1]} 61... a4 {[%clk 0:00:17.6]} 62. Kc1 {[%clk
0:00:45.6]} 62... a3 {[%clk 0:00:18.5]} 63. Kb1 {[%clk 0:00:46.5]} 63... a2+
{[%clk 0:00:19.2]} 64. Kc1 {[%clk 0:00:47.4]} 64... a1=Q# {[%clk 0:00:19.7]} 0-1

[Event "Late-Titled-Tuesday-Blitz-September-12-2023"]
[Site "Chess.com"]
[Date "2023.09.12"]
[Round "5"]
[White "angryspacevoid"]
[Black "sofaceindisguise"]
[Result "1-0"]
[WhiteElo "2559"]
[BlackElo "2778"]
[TimeControl "180+1"]
[EndTime "14:53:08 PDT"]
[Termination "angryspacevoid won on time"]

1. e4 {[%clk 0:03:00.9]} 1... c5 {[%clk 0:02:58.4]} 2. Nf3 {[%clk 0:02:58.6]}
2... e6 {[%clk 0:02:58.9]} 3. d4 {[%clk 0:02:58.1]} 3... cxd4 {[%clk 0:02:59.8]}
4. Nxd4 {[%clk 0:02:59]} 4... Nf6 {[%clk 0:03:00.3]} 5. Nc3 {[%clk 0:02:56]}
5... Nc6 {[%clk 0:03:00.3]} 6. a3 {[%clk 0:02:50.8]} 6... d6 {[%clk 0:02:54.9]}
7. Be3 {[%clk 0:02:41.4]} 7... Bd7 {[%clk 0:02:50.2]} 8. Be2 {[%clk 0:02:35.7]}
8... a6 {[%clk 0:02:48.6]} 9. Qd2 {[%clk 0:02:34.9]} 9... Rc8 {[%clk 0:02:47.6]}
10. f4 {[%clk 0:02:21.2]} 10... Be7 {[%clk 0:02:40.2]} 11. O-O {[%clk
0:02:20.2]} 11... O-O {[%clk 0:02:40]} 12. Rad1 {[%clk 0:02:18]} 12... Qc7
{[%clk 0:02:35.2]} 13. Bf3 {[%clk 0:02:09.3]} 13... Rfe8 {[%clk 0:02:27.6]} 14.
Nb3 {[%clk 0:02:06.2]} 14... b5 {[%clk 0:02:13.6]} 15. g4 {[%clk 0:02:04.5]}
15... Red8 {[%clk 0:01:51.9]} 16. Qf2 {[%clk 0:01:53.1]} 16... Qb8 {[%clk
0:01:38.8]} 17. Bb6 {[%clk 0:01:40.8]} 17... b4 {[%clk 0:01:23.5]} 18. axb4
{[%clk 0:01:33.2]} 18... Nxb4 {[%clk 0:01:24.4]} 19. Bxd8 {[%clk 0:01:32.3]}
19... Bxd8 {[%clk 0:01:25.3]} 20. Qd2 {[%clk 0:01:22.5]} 20... Bb6+ {[%clk
0:01:24.4]} 21. Kh1 {[%clk 0:01:21.6]} 21... Ne8 {[%clk 0:01:01.8]} 22. Bg2
{[%clk 0:01:01.4]} 22... a5 {[%clk 0:01:01.8]} 23. Ra1 {[%clk 0:00:56.7]} 23...
a4 {[%clk 0:00:52.5]} 24. Nxa4 {[%clk 0:00:55.4]} 24... Nxc2 {[%clk 0:00:52.8]}
25. Rac1 {[%clk 0:00:35.3]} 25... Bxa4 {[%clk 0:00:48.8]} 26. Rxc2 {[%clk
0:00:34.6]} 26... Bxb3 {[%clk 0:00:34.6]} 27. Rxc8 {[%clk 0:00:33.6]} 27... Qxc8
{[%clk 0:00:35.5]} 28. Qb4 {[%clk 0:00:31.9]} 28... Qc5 {[%clk 0:00:13.2]} 29.
Qxb3 {[%clk 0:00:31]} 29... h6 {[%clk 0:00:09.1]} 30. Qc3 {[%clk 0:00:27.7]}
30... Qb5 {[%clk 0:00:07.1]} 31. Rc1 {[%clk 0:00:23.6]} 31... Nf6 {[%clk
0:00:06.4]} 32. h3 {[%clk 0:00:19.5]} 32... Bc5 {[%clk 0:00:04.9]} 33. e5 {[%clk
0:00:17.9]} 33... dxe5 {[%clk 0:00:01.7]} 34. Qxc5 {[%clk 0:00:17.7]} 34... Qxb2
{[%clk 0:00:01.1]} 35. fxe5 {[%clk 0:00:16.2]} 1-0

[Event "Late-Titled-Tuesday-Blitz-September-12-2023"]
[Site "Chess.com"]
[Date "2023.09.12"]
[Round "5"]
[White "RaphaeI"]
[Black "S-Fazulyanov"]
[Result "0-1"]
[WhiteElo "2598"]
[BlackElo "2475"]
[TimeControl "180+1"]
[EndTime "14:53:08 PDT"]
[Termination "S-Fazulyanov won on time"]

1. c4 {[%clk 0:03:00.9]} 1... e5 {[%clk 0:03:00.2]} 2. d3 {[%clk 0:03:01.3]}
2... Nc6 {[%clk 0:03:00.2]} 3. Nf3 {[%clk 0:03:00.8]} 3... g6 {[%clk 0:03:00.7]}
4. g3 {[%clk 0:02:55.4]} 4... Bg7 {[%clk 0:03:00.5]} 5. Bg2 {[%clk 0:02:55.5]}
5... Nge7 {[%clk 0:03:00.4]} 6. Nc3 {[%clk 0:02:55.7]} 6... O-O {[%clk 0:03:00]}
7. O-O {[%clk 0:02:55.4]} 7... d6 {[%clk 0:02:59.8]} 8. Rb1 {[%clk 0:02:54.8]}
8... a5 {[%clk 0:02:59.3]} 9. a3 {[%clk 0:02:53.3]} 9... f5 {[%clk 0:02:58.3]}
10. Bd2 {[%clk 0:02:51.3]} 10... h6 {[%clk 0:02:57.8]} 11. b4 {[%clk 0:02:51.1]}
11... axb4 {[%clk 0:02:58.4]} 12. axb4 {[%clk 0:02:52]} 12... Be6 {[%clk
0:02:57.7]} 13. b5 {[%clk 0:02:42.8]} 13... Na5 {[%clk 0:02:57.3]} 14. Ne1
{[%clk 0:02:31.7]} 14... g5 {[%clk 0:02:51.1]} 15. Nc2 {[%clk 0:02:28.2]} 15...
f4 {[%clk 0:02:45.2]} 16. Nb4 {[%clk 0:02:28.2]} 16... Qd7 {[%clk 0:02:40.4]}
17. Ncd5 {[%clk 0:02:15.4]} 17... Ng6 {[%clk 0:01:54.2]} 18. b6 {[%clk
0:02:02.8]} 18... c5 {[%clk 0:01:47.1]} 19. Nc7 {[%clk 0:01:55.6]} 19... Bh3
{[%clk 0:01:40.9]} 20. Nxa8 {[%clk 0:01:44]} 20... Bxg2 {[%clk 0:01:29.5]} 21.
Kxg2 {[%clk 0:01:43.6]} 21... cxb4 {[%clk 0:01:29.1]} 22. Nc7 {[%clk 0:01:39.1]}
22... Qg4 {[%clk 0:00:45.4]} 23. h3 {[%clk 0:00:31.6]} 23... Qh5 {[%clk
0:00:33.7]} 24. g4 {[%clk 0:00:24.3]} 24... f3+ {[%clk 0:00:18.7]} 25. exf3
{[%clk 0:00:19.7]} 25... Nh4+ {[%clk 0:00:18.8]} 26. Kh1 {[%clk 0:00:19.9]}
26... Qg6 {[%clk 0:00:16.3]} 27. f4 {[%clk 0:00:14.7]} 27... Qxd3 {[%clk
0:00:13.5]} 28. Be3 {[%clk 0:00:13.2]} 28... Qe4+ {[%clk 0:00:10.4]} 29. f3
{[%clk 0:00:13.7]} 29... Qxe3 {[%clk 0:00:10.7]} 30. Qd5+ {[%clk 0:00:14.6]}
30... Kh8 {[%clk 0:00:10.4]} 31. Ne6 {[%clk 0:00:08]} 31... Qe2 {[%clk
0:00:05.9]} 0-1

[Event "Late-Titled-Tuesday-Blitz-September-12-2023"]
[Site "Chess.com"]
[Date "2023.09.12"]
[Round "5"]
[White "CURRUTACO59"]
[Black "ManuMunoz01"]
[Result "0-1"]
[WhiteElo "2269"]
[BlackElo "2255"]
[TimeControl "180+1"]
[EndTime "14:53:08 PDT"]
[Termination "ManuMunoz01 won on time"]

1. Nf3 {[%clk 0:03:00.9]} 1... d5 {[%clk 0:02:55.8]} 2. d4 {[%clk 0:03:00]} 2...
Bf5 {[%clk 0:02:54.2]} 3. c4 {[%clk 0:02:59.2]} 3... c6 {[%clk 0:02:51.9]} 4. e3
{[%clk 0:02:55.7]} 4... g6 {[%clk 0:02:48.1]} 5. Nc3 {[%clk 0:02:55.3]} 5... Bg7
{[%clk 0:02:43.3]} 6. Be2 {[%clk 0:02:51.9]} 6... Nf6 {[%clk 0:02:16]} 7. Nh4
{[%clk 0:02:32]} 7... Be6 {[%clk 0:02:12.4]} 8. c5 {[%clk 0:02:24.9]} 8... b6
{[%clk 0:01:45.6]} 9. cxb6 {[%clk 0:02:14.1]} 9... axb6 {[%clk 0:01:45]} 10. O-O
{[%clk 0:02:12.9]} 10... O-O {[%clk 0:01:44.7]} 11. Nf3 {[%clk 0:02:11.8]} 11...
Nbd7 {[%clk 0:01:40.2]} 12. b3 {[%clk 0:02:07.7]} 12... b5 {[%clk 0:01:28.2]}
13. Bb2 {[%clk 0:01:49]} 13... Nb6 {[%clk 0:01:24.4]} 14. a3 {[%clk 0:01:37.8]}
14... Qd6 {[%clk 0:01:23.1]} 15. Ne5 {[%clk 0:01:36.5]} 15... Nfd7 {[%clk
0:01:18.5]} 16. f4 {[%clk 0:01:34.3]} 16... Nxe5 {[%clk 0:01:11.5]} 17. fxe5
{[%clk 0:01:34.1]} 17... Qd7 {[%clk 0:01:09.5]} 18. Qe1 {[%clk 0:01:24.1]} 18...
Qb7 {[%clk 0:00:43.5]} 19. Qh4 {[%clk 0:01:21.4]} 19... Qd7 {[%clk 0:00:37]} 20.
Bd3 {[%clk 0:01:06.4]} 20... f6 {[%clk 0:00:36]} 21. exf6 {[%clk 0:01:00.3]}
21... exf6 {[%clk 0:00:27.8]} 22. Ne2 {[%clk 0:00:50.5]} 22... f5 {[%clk
0:00:20.5]} 23. Nf4 {[%clk 0:00:50.5]} 23... Bf7 {[%clk 0:00:20.6]} 24. Qg3
{[%clk 0:00:48.5]} 24... Rae8 {[%clk 0:00:20.6]} 25. Rae1 {[%clk 0:00:46.5]}
25... Qe7 {[%clk 0:00:20.5]} 26. Bc1 {[%clk 0:00:37.9]} 26... Nd7 {[%clk
0:00:20.3]} 27. Bc2 {[%clk 0:00:19.2]} 27... Nf6 {[%clk 0:00:19.9]} 28. Kh1
{[%clk 0:00:13.6]} 28... Ne4 {[%clk 0:00:19.9]} 29. Qf3 {[%clk 0:00:10.3]} 29...
Qd6 {[%clk 0:00:14.2]} 30. Nd3 {[%clk 0:00:09.9]} 30... Bf6 {[%clk 0:00:11.7]}
31. Qh3 {[%clk 0:00:03.9]} 31... Kg7 {[%clk 0:00:09.2]} 32. Nf4 {[%clk 0:00:03]}
32... Bg5 {[%clk 0:00:06.8]} 33. Bxe4 {[%clk 0:00:01.2]} 33... Rxe4 {[%clk
0:00:06.5]} 0-1

[Event "Late-Titled-Tuesday-Blitz-September-12-2023"]
[Site "Chess.com"]
[Date "2023.09.12"]
[Round "5"]
[White "whitemirrorninja"]
[Black "MarcoRiehle"]
[Result "0-1"]
[WhiteElo "2497"]
[BlackElo "2773"]
[TimeControl "180+1"]
[EndTime "14:53:11 PDT"]
[Termination "MarcoRiehle won by checkmate"]

1. e4 {[%clk 0:03:00.9]} 1... e5 {[%clk 0:03:00.1]} 2. Nf3 {[%clk 0:03:00.1]}
2... Nf6 {[%clk 0:03:00.5]} 3. Nc3 {[%clk 0:02:59.1]} 3... Nc6 {[%clk
0:03:00.1]} 4. Be2 {[%clk 0:02:59.3]} 4... Bc5 {[%clk 0:02:59.8]} 5. Nxe5 {[%clk
0:02:59.1]} 5... Nxe5 {[%clk 0:02:52.5]} 6. d4 {[%clk 0:02:59.3]} 6... Bd6
{[%clk 0:02:53.4]} 7. dxe5 {[%clk 0:02:59.3]} 7... Bxe5 {[%clk 0:02:54.3]} 8.
Nb5 {[%clk 0:02:59.8]} 8... c6 {[%clk 0:02:34.7]} 9. f4 {[%clk 0:03:00.3]} 9...
Bb8 {[%clk 0:02:34.7]} 10. Nd6+ {[%clk 0:02:59.8]} 10... Bxd6 {[%clk 0:02:34.8]}
11. Qxd6 {[%clk 0:03:00.7]} 11... Qe7 {[%clk 0:02:34.6]} 12. Qxe7+ {[%clk
0:02:55.4]} 12... Kxe7 {[%clk 0:02:35.5]} 13. e5 {[%clk 0:02:53.1]} 13... Ne4
{[%clk 0:02:31]} 14. b3 {[%clk 0:02:39.1]} 14... d5 {[%clk 0:02:23.5]} 15. exd6+
{[%clk 0:02:31.8]} 15... Nxd6 {[%clk 0:02:23.1]} 16. Ba3 {[%clk 0:02:32.5]}
16... Be6 {[%clk 0:02:16.1]} 17. O-O-O {[%clk 0:02:32.9]} 17... Rad8 {[%clk
0:02:16.5]} 18. Bf3 {[%clk 0:02:27.6]} 18... Rd7 {[%clk 0:02:10.4]} 19. g4
{[%clk 0:02:25]} 19... g6 {[%clk 0:02:10.7]} 20. g5 {[%clk 0:02:24.8]} 20...
Rhd8 {[%clk 0:02:09.3]} 21. Rd2 {[%clk 0:02:18.9]} 21... Ke8 {[%clk 0:02:05.5]}
22. h4 {[%clk 0:02:04.9]} 22... Nb5 {[%clk 0:01:59]} 23. Rxd7 {[%clk 0:02:02.8]}
23... Rxd7 {[%clk 0:01:58.6]} 24. Bb2 {[%clk 0:01:59]} 24... Nd4 {[%clk
0:01:55.6]} 25. Bd1 {[%clk 0:01:51]} 25... Nf5 {[%clk 0:01:38.6]} 26. h5 {[%clk
0:01:50.2]} 26... Ng3 {[%clk 0:01:38.5]} 27. hxg6 {[%clk 0:01:50.1]} 27... fxg6
{[%clk 0:01:36.1]} 28. Re1 {[%clk 0:01:47.5]} 28... Kf7 {[%clk 0:01:35.8]} 29.
Bf6 {[%clk 0:01:32.1]} 29... h5 {[%clk 0:01:29.9]} 30. Bf3 {[%clk 0:00:53.5]}
30... Bd5 {[%clk 0:01:24.5]} 31. Bxd5+ {[%clk 0:00:41.8]} 31... cxd5 {[%clk
0:01:25.1]} 32. Bd4 {[%clk 0:00:30.5]} 32... Ne4 {[%clk 0:01:19.3]} 33. Bxa7
{[%clk 0:00:27]} 33... Ke6 {[%clk 0:01:19]} 34. c4 {[%clk 0:00:25.1]} 34... Kf5
{[%clk 0:01:18.6]} 35. c5 {[%clk 0:00:23.3]} 35... d4 {[%clk 0:01:12.6]} 36. b4
{[%clk 0:00:18.1]} 36... d3 {[%clk 0:01:12.7]} 37. Rd1 {[%clk 0:00:09.1]} 37...
h4 {[%clk 0:01:12.5]} 38. b5 {[%clk 0:00:09.2]} 38... h3 {[%clk 0:01:11.5]} 39.
Bb8 {[%clk 0:00:08.9]} 39... Rd5 {[%clk 0:01:04.1]} 40. c6 {[%clk 0:00:08.5]}
40... d2+ {[%clk 0:00:59.4]} 41. Kc2 {[%clk 0:00:08.4]} 41... bxc6 {[%clk
0:00:59.1]} 42. b6 {[%clk 0:00:08.6]} 42... Rc5+ {[%clk 0:00:50.5]} 43. Kd3
{[%clk 0:00:04.5]} 43... Rc1 {[%clk 0:00:48.8]} 44. Ke2 {[%clk 0:00:03.4]} 44...
Rxd1 {[%clk 0:00:47.7]} 45. Kxd1 {[%clk 0:00:03.7]} 45... h2 {[%clk 0:00:47.6]}
46. b7 {[%clk 0:00:02.8]} 46... h1=Q+ {[%clk 0:00:47.7]} 47. Kc2 {[%clk
0:00:03.3]} 47... d1=Q+ {[%clk 0:00:48.3]} 48. Kb2 {[%clk 0:00:03.7]} 48... Qa1+
{[%clk 0:00:46.8]} 49. Kb3 {[%clk 0:00:03.6]} 49... Qhb1+ {[%clk 0:00:46.7]} 50.
Kc4 {[%clk 0:00:04]} 50... Qc3# {[%clk 0:00:46.4]} 0-1

[Event "Late-Titled-Tuesday-Blitz-September-12-2023"]
[Site "Chess.com"]
[Date "2023.09.12"]
[Round "5"]
[White "FabianoCaruana"]
[Black "ckgchess"]
[Result "1-0"]
[WhiteElo "3057"]
[BlackElo "2884"]
[TimeControl "180+1"]
[EndTime "14:53:12 PDT"]
[Termination "FabianoCaruana won on time"]

1. c4 {[%clk 0:03:00.9]} 1... Nf6 {[%clk 0:02:55.3]} 2. g3 {[%clk 0:03:01.3]}
2... e5 {[%clk 0:02:52.9]} 3. Bg2 {[%clk 0:03:00.6]} 3... c6 {[%clk 0:02:53.6]}
4. d4 {[%clk 0:02:59.1]} 4... e4 {[%clk 0:02:53.5]} 5. a3 {[%clk 0:02:57.6]}
5... d5 {[%clk 0:02:53.6]} 6. Nc3 {[%clk 0:02:58.2]} 6... h6 {[%clk 0:02:48.4]}
7. f3 {[%clk 0:02:58.4]} 7... Bf5 {[%clk 0:02:26.3]} 8. fxe4 {[%clk 0:02:56.3]}
8... Bxe4 {[%clk 0:02:15.8]} 9. Nxe4 {[%clk 0:02:51.4]} 9... dxe4 {[%clk
0:02:16.7]} 10. e3 {[%clk 0:02:41.5]} 10... Bd6 {[%clk 0:02:10.2]} 11. Ne2
{[%clk 0:02:41.7]} 11... O-O {[%clk 0:02:08.8]} 12. O-O {[%clk 0:02:42.3]} 12...
Re8 {[%clk 0:01:51.7]} 13. b4 {[%clk 0:02:22.4]} 13... a5 {[%clk 0:01:47.4]} 14.
Bd2 {[%clk 0:02:20.7]} 14... axb4 {[%clk 0:01:45.6]} 15. axb4 {[%clk 0:02:21.6]}
15... Rxa1 {[%clk 0:01:45.8]} 16. Qxa1 {[%clk 0:02:22.5]} 16... Na6 {[%clk
0:01:40.5]} 17. Qb2 {[%clk 0:02:21.7]} 17... Nc7 {[%clk 0:01:32.9]} 18. Bc3
{[%clk 0:02:13.5]} 18... Ng4 {[%clk 0:01:28.3]} 19. Qd2 {[%clk 0:02:09.6]} 19...
Qg5 {[%clk 0:01:19.3]} 20. Nf4 {[%clk 0:02:09.1]} 20... Ne6 {[%clk 0:01:06.6]}
21. h3 {[%clk 0:01:34.8]} 21... Nf6 {[%clk 0:01:01.4]} 22. d5 {[%clk 0:01:32.6]}
22... cxd5 {[%clk 0:00:48.1]} 23. Bxf6 {[%clk 0:01:13.5]} 23... Qxf6 {[%clk
0:00:48]} 24. Nxd5 {[%clk 0:01:07.7]} 24... Qg5 {[%clk 0:00:27.9]} 25. Qf2
{[%clk 0:00:55.5]} 25... Rf8 {[%clk 0:00:18.3]} 26. g4 {[%clk 0:00:46.1]} 26...
Qe5 {[%clk 0:00:15.4]} 27. Rd1 {[%clk 0:00:39.9]} 27... f5 {[%clk 0:00:14.5]}
28. g5 {[%clk 0:00:23.8]} 28... f4 {[%clk 0:00:14.2]} 29. exf4 {[%clk
0:00:15.8]} 29... Nxf4 {[%clk 0:00:15.1]} 30. Nxf4 {[%clk 0:00:16.2]} 30... Rxf4
{[%clk 0:00:16]} 31. Qb6 {[%clk 0:00:15.7]} 31... Bb8 {[%clk 0:00:07]} 32. Qxb7
{[%clk 0:00:15.1]} 32... Rf7 {[%clk 0:00:04.2]} 33. Qc8+ {[%clk 0:00:14]} 33...
Kh7 {[%clk 0:00:03.5]} 34. g6+ {[%clk 0:00:12.8]} 34... Kxg6 {[%clk 0:00:04.2]}
35. Qg4+ {[%clk 0:00:13.1]} 35... Kh7 {[%clk 0:00:02.6]} 36. Bxe4+ {[%clk
0:00:11.7]} 36... Kg8 {[%clk 0:00:03.3]} 37. Rd8+ {[%clk 0:00:10.9]} 37... Rf8
{[%clk 0:00:04.1]} 38. Bd5+ {[%clk 0:00:10.6]} 38... Kh7 {[%clk 0:00:04.6]} 39.
Qe4+ {[%clk 0:00:10.8]} 1-0

[Event "Late-Titled-Tuesday-Blitz-September-12-2023"]
[Site "Chess.com"]
[Date "2023.09.12"]
[Round "5"]
[White "YEIKO2017"]
[Black "Quattroporte300"]
[Result "0-1"]
[WhiteElo "2537"]
[BlackElo "2416"]
[TimeControl "180+1"]
[EndTime "14:53:14 PDT"]
[Termination "Quattroporte300 won by resignation"]

1. e4 {[%clk 0:03:00.9]} 1... c5 {[%clk 0:02:57.1]} 2. Nf3 {[%clk 0:03:00.7]}
2... d6 {[%clk 0:02:57]} 3. d4 {[%clk 0:03:00.7]} 3... cxd4 {[%clk 0:02:55.4]}
4. Nxd4 {[%clk 0:03:01.6]} 4... Nf6 {[%clk 0:02:55]} 5. Nc3 {[%clk 0:03:02]}
5... a6 {[%clk 0:02:54.4]} 6. Bg5 {[%clk 0:03:01.7]} 6... Nbd7 {[%clk
0:02:53.3]} 7. Qe2 {[%clk 0:03:00.9]} 7... g6 {[%clk 0:02:52.2]} 8. O-O-O {[%clk
0:02:56.4]} 8... Bg7 {[%clk 0:02:52.5]} 9. f4 {[%clk 0:02:55]} 9... Qa5 {[%clk
0:02:33.3]} 10. Nb3 {[%clk 0:02:47.3]} 10... Qc7 {[%clk 0:02:29.4]} 11. g3
{[%clk 0:02:47.4]} 11... O-O {[%clk 0:02:28.4]} 12. Bg2 {[%clk 0:02:46.5]} 12...
h6 {[%clk 0:02:28.2]} 13. Bxf6 {[%clk 0:02:39.7]} 13... Nxf6 {[%clk 0:02:27.2]}
14. e5 {[%clk 0:02:39.8]} 14... Bg4 {[%clk 0:02:07.4]} 15. exf6 {[%clk
0:02:22.8]} 15... Bxe2 {[%clk 0:02:06.5]} 16. fxg7 {[%clk 0:02:23.3]} 16... Bxd1
{[%clk 0:01:58.9]} 17. gxf8=Q+ {[%clk 0:02:22.3]} 17... Kxf8 {[%clk 0:01:58.9]}
18. Rxd1 {[%clk 0:02:20.6]} 18... e6 {[%clk 0:01:55.5]} 19. h4 {[%clk
0:02:10.8]} 19... h5 {[%clk 0:01:53.1]} 20. Ne4 {[%clk 0:02:09.3]} 20... d5
{[%clk 0:01:49.7]} 21. Ng5 {[%clk 0:02:02.8]} 21... Rc8 {[%clk 0:01:47.7]} 22.
Rd2 {[%clk 0:01:44.3]} 22... b5 {[%clk 0:01:43.2]} 23. Nd4 {[%clk 0:01:41.3]}
23... Qa5 {[%clk 0:01:40.1]} 24. a3 {[%clk 0:01:36.5]} 24... b4 {[%clk
0:01:35.4]} 25. Rd3 {[%clk 0:01:09.5]} 25... bxa3 {[%clk 0:01:32.7]} 26. bxa3
{[%clk 0:01:10.4]} 26... Qe1+ {[%clk 0:01:26.1]} 27. Kb2 {[%clk 0:01:08.7]}
27... Rb8+ {[%clk 0:01:18.1]} 28. Nb3 {[%clk 0:01:08.3]} 28... Qf2 {[%clk
0:01:16.5]} 29. Bf3 {[%clk 0:01:02.2]} 29... Qxg3 {[%clk 0:01:12.6]} 30. Bxd5
{[%clk 0:00:53.5]} 30... Qxh4 {[%clk 0:01:09.5]} 31. Bf3 {[%clk 0:00:36]} 31...
Qxf4 {[%clk 0:01:06.4]} 32. Ne4 {[%clk 0:00:36.2]} 32... Qe5+ {[%clk 0:01:02.5]}
33. Ka2 {[%clk 0:00:34.8]} 33... a5 {[%clk 0:00:57.7]} 34. a4 {[%clk 0:00:32]}
34... Rb4 {[%clk 0:00:53.6]} 35. Nec5 {[%clk 0:00:32.6]} 35... Qh2 {[%clk
0:00:38.8]} 36. Rd8+ {[%clk 0:00:28.7]} 36... Kg7 {[%clk 0:00:38.1]} 37. Rd7
{[%clk 0:00:28.5]} 37... Qxc2+ {[%clk 0:00:36.3]} 38. Ka3 {[%clk 0:00:24]} 38...
Qc3 {[%clk 0:00:28.8]} 39. Nxe6+ {[%clk 0:00:19.5]} 39... Kh6 {[%clk 0:00:29]}
40. Nd4 {[%clk 0:00:20]} 40... Rxd4 {[%clk 0:00:24.9]} 41. Rxd4 {[%clk
0:00:19.5]} 41... Qxf3 {[%clk 0:00:25.4]} 42. Rc4 {[%clk 0:00:18]} 42... g5
{[%clk 0:00:20.8]} 43. Rc5 {[%clk 0:00:18.3]} 43... h4 {[%clk 0:00:18.4]} 44.
Rxa5 {[%clk 0:00:18.7]} 44... h3 {[%clk 0:00:18.9]} 45. Ra6+ {[%clk 0:00:19.1]}
45... f6 {[%clk 0:00:18.2]} 0-1